[Event "*** Titled Tuesday Blitz"]
[Site "Chess.com"]
[Date "2020.05.12"]
[Round "2"]
[White "LeonValdes"]
[Black "jacky72"]
[Result "0-1"]
[WhiteElo "2385"]
[BlackElo "2653"]
[TimeControl "180+1"]
[EndTime "10:18:33 PDT"]
[Termination "jacky72 won by resignation"]

1. d4 {[%clk 0:03:00.9]} 1... Nf6 {[%clk 0:02:59.8]} 2. c4 {[%clk 0:02:58.6]}
2... g6 {[%clk 0:03:00.1]} 3. f3 {[%clk 0:02:58]} 3... Bg7 {[%clk 0:03:00.6]} 4.
e4 {[%clk 0:02:57.9]} 4... O-O {[%clk 0:03:01.5]} 5. Nc3 {[%clk 0:02:57.5]} 5...
d6 {[%clk 0:03:01.9]} 6. Nge2 {[%clk 0:02:57.2]} 6... c5 {[%clk 0:03:02.1]} 7.
d5 {[%clk 0:02:56.5]} 7... Nbd7 {[%clk 0:02:59.6]} 8. Ng3 {[%clk 0:02:56.3]}
8... Ne5 {[%clk 0:02:53.3]} 9. Be2 {[%clk 0:02:52.5]} 9... h5 {[%clk 0:02:53.2]}
10. Bg5 {[%clk 0:02:50.5]} 10... e6 {[%clk 0:02:51.2]} 11. O-O {[%clk 0:02:46]}
11... exd5 {[%clk 0:02:48.8]} 12. cxd5 {[%clk 0:02:46.9]} 12... a6 {[%clk
0:02:48.4]} 13. a4 {[%clk 0:02:46.5]} 13... Bd7 {[%clk 0:02:48.9]} 14. Qd2
{[%clk 0:02:36.6]} 14... b5 {[%clk 0:02:36.9]} 15. axb5 {[%clk 0:02:35.4]} 15...
axb5 {[%clk 0:02:37.8]} 16. Rxa8 {[%clk 0:02:35.4]} 16... Qxa8 {[%clk
0:02:37.4]} 17. Nxb5 {[%clk 0:02:34.4]} 17... Bxb5 {[%clk 0:02:29.4]} 18. Bxb5
{[%clk 0:02:35.3]} 18... Rb8 {[%clk 0:02:29.7]} 19. Be2 {[%clk 0:02:26.1]} 19...
Qa2 {[%clk 0:02:28.3]} 20. b4 {[%clk 0:02:15.3]} 20... Qxd2 {[%clk 0:02:24]} 21.
Bxd2 {[%clk 0:02:16.2]} 21... cxb4 {[%clk 0:02:24.8]} 22. Rb1 {[%clk 0:02:15.6]}
22... b3 {[%clk 0:02:25.4]} 23. Bc3 {[%clk 0:02:04.2]} 23... Nfd7 {[%clk
0:02:15.8]} 24. Kf1 {[%clk 0:01:57.4]} 24... Nxf3 {[%clk 0:02:13]} 25. gxf3
{[%clk 0:01:48.7]} 25... Bxc3 {[%clk 0:02:11.6]} 26. Bd1 {[%clk 0:01:48.6]}
26... b2 {[%clk 0:02:08.2]} 27. Ne2 {[%clk 0:01:48.6]} 27... Be5 {[%clk
0:02:06.8]} 28. f4 {[%clk 0:01:48.5]} 28... Bg7 {[%clk 0:02:07.3]} 29. Bc2
{[%clk 0:01:45.6]} 29... Rc8 {[%clk 0:01:56.2]} 30. Bd3 {[%clk 0:01:42.4]} 30...
Nc5 {[%clk 0:01:54.9]} 31. Bc2 {[%clk 0:01:42.3]} 31... Re8 {[%clk 0:01:40.6]}
32. e5 {[%clk 0:01:39.4]} 32... dxe5 {[%clk 0:01:40.3]} 33. Rxb2 {[%clk
0:01:38.2]} 33... exf4 {[%clk 0:01:35.6]} 34. Rb5 {[%clk 0:01:37.5]} 34... f3
{[%clk 0:01:22]} 35. Ng1 {[%clk 0:01:30.4]} 35... f2 {[%clk 0:01:03.9]} 36. Nf3
{[%clk 0:01:30.1]} 36... Ne4 {[%clk 0:00:58.1]} 37. Rb7 {[%clk 0:01:11.6]} 37...
Nd6 {[%clk 0:00:45.4]} 38. Rd7 {[%clk 0:01:08.8]} 38... Nc4 {[%clk 0:00:39.6]}
39. Kxf2 {[%clk 0:01:05.3]} 39... Bf6 {[%clk 0:00:40]} 40. d6 {[%clk 0:00:55.5]}
40... Re6 {[%clk 0:00:35]} 41. Bb3 {[%clk 0:00:45.9]} 41... Rxd6 {[%clk
0:00:34.7]} 42. Rc7 {[%clk 0:00:41.4]} 42... Ne5 {[%clk 0:00:19.5]} 43. Nxe5
{[%clk 0:00:39.5]} 43... Bxe5 {[%clk 0:00:20.4]} 44. Rxf7 {[%clk 0:00:37]} 44...
Kh8 {[%clk 0:00:20.4]} 45. Rf3 {[%clk 0:00:36.1]} 45... Bxh2 {[%clk 0:00:17.8]}
46. Kg2 {[%clk 0:00:31.6]} 46... Rd2+ {[%clk 0:00:16.6]} 47. Kh3 {[%clk
0:00:31]} 47... Kg7 {[%clk 0:00:14.9]} 48. Rc3 {[%clk 0:00:30.5]} 48... Be5
{[%clk 0:00:13.4]} 49. Rg3 {[%clk 0:00:25.5]} 49... Bxg3 {[%clk 0:00:12.8]} 0-1

[Event "*** Titled Tuesday Blitz"]
[Site "Chess.com"]
[Date "2020.05.12"]
[Round "2"]
[White "Mr_Sinigami"]
[Black "tan275"]
[Result "1-0"]
[WhiteElo "2597"]
[BlackElo "2179"]
[TimeControl "180+1"]
[EndTime "10:18:33 PDT"]
[Termination "Mr_Sinigami won by resignation"]

1. d4 {[%clk 0:03:00.9]} 1... d5 {[%clk 0:02:57.9]} 2. Nf3 {[%clk 0:03:00.1]}
2... Nf6 {[%clk 0:02:57.2]} 3. Bf4 {[%clk 0:02:59.1]} 3... c5 {[%clk 0:02:56.8]}
4. e3 {[%clk 0:02:58.4]} 4... Nc6 {[%clk 0:02:54.6]} 5. c3 {[%clk 0:02:58.1]}
5... Qb6 {[%clk 0:02:50.9]} 6. Qc1 {[%clk 0:02:56]} 6... Bf5 {[%clk 0:02:31]} 7.
Nbd2 {[%clk 0:02:46.8]} 7... e6 {[%clk 0:02:29.7]} 8. Nb3 {[%clk 0:02:45.5]}
8... Ne4 {[%clk 0:02:11.3]} 9. Be2 {[%clk 0:02:41.9]} 9... Be7 {[%clk
0:02:10.1]} 10. O-O {[%clk 0:02:40.1]} 10... O-O {[%clk 0:02:09.7]} 11. dxc5
{[%clk 0:02:26.1]} 11... Nxc5 {[%clk 0:02:08.4]} 12. Nbd4 {[%clk 0:02:25.5]}
12... Bg6 {[%clk 0:02:03.6]} 13. Rd1 {[%clk 0:02:11.5]} 13... Rac8 {[%clk
0:01:48.9]} 14. Nxc6 {[%clk 0:02:06.6]} 14... bxc6 {[%clk 0:01:44.6]} 15. Ne5
{[%clk 0:02:07.5]} 15... Qb7 {[%clk 0:01:26.3]} 16. h3 {[%clk 0:01:52.4]} 16...
Ne4 {[%clk 0:01:17.6]} 17. Nxg6 {[%clk 0:01:46.1]} 17... fxg6 {[%clk 0:01:10.9]}
18. Bf3 {[%clk 0:01:35.2]} 18... Ng5 {[%clk 0:00:46.1]} 19. Bxg5 {[%clk
0:01:12.8]} 19... Bxg5 {[%clk 0:00:47]} 20. Qc2 {[%clk 0:01:12.9]} 20... e5
{[%clk 0:00:40.8]} 21. e4 {[%clk 0:01:12.3]} 21... Rcd8 {[%clk 0:00:23]} 22. Rd3
{[%clk 0:00:43]} 22... dxe4 {[%clk 0:00:13.3]} 23. Bxe4 {[%clk 0:00:40.7]} 23...
Kh8 {[%clk 0:00:12.3]} 24. Rad1 {[%clk 0:00:39.6]} 24... Rxd3 {[%clk 0:00:12.2]}
25. Rxd3 {[%clk 0:00:39.3]} 25... Qf7 {[%clk 0:00:12.1]} 26. a3 {[%clk
0:00:31.2]} 26... Bf4 {[%clk 0:00:11.2]} 27. Bxc6 {[%clk 0:00:29.2]} 27... Qf6
{[%clk 0:00:11.3]} 28. Be4 {[%clk 0:00:28.4]} 28... Qg5 {[%clk 0:00:11.5]} 29.
Rf3 {[%clk 0:00:26.9]} 29... Rd8 {[%clk 0:00:09.5]} 30. Rd3 {[%clk 0:00:26.1]}
30... Rf8 {[%clk 0:00:09.2]} 31. c4 {[%clk 0:00:23.9]} 31... Bc1 {[%clk
0:00:08.6]} 32. c5 {[%clk 0:00:22.8]} 32... Bf4 {[%clk 0:00:07.1]} 33. c6 {[%clk
0:00:22.5]} 33... Qe7 {[%clk 0:00:05.3]} 34. b4 {[%clk 0:00:21.5]} 34... Qc7
{[%clk 0:00:04.3]} 35. Rd7 {[%clk 0:00:20]} 35... Qb6 {[%clk 0:00:03.9]} 36. c7
{[%clk 0:00:19.8]} 36... Be3 {[%clk 0:00:03.6]} 37. c8=Q {[%clk 0:00:14.5]}
37... Bxf2+ {[%clk 0:00:03]} 38. Kh1 {[%clk 0:00:14.6]} 38... Rxc8 {[%clk
0:00:02.8]} 39. Qxc8+ {[%clk 0:00:13.9]} 1-0

[Event "*** Titled Tuesday Blitz"]
[Site "Chess.com"]
[Date "2020.05.12"]
[Round "2"]
[White "kleopl"]
[Black "GoValya"]
[Result "0-1"]
[WhiteElo "2402"]
[BlackElo "2177"]
[TimeControl "180+1"]
[EndTime "10:18:33 PDT"]
[Termination "GoValya won by resignation"]

1. c4 {[%clk 0:03:00.9]} 1... Nf6 {[%clk 0:02:58.6]} 2. Nc3 {[%clk 0:03:00.4]}
2... e6 {[%clk 0:02:58.9]} 3. Nf3 {[%clk 0:02:58.9]} 3... d5 {[%clk 0:02:57.1]}
4. d4 {[%clk 0:02:59.1]} 4... c6 {[%clk 0:02:51.3]} 5. cxd5 {[%clk 0:02:58.3]}
5... exd5 {[%clk 0:02:49.3]} 6. Bg5 {[%clk 0:02:58.3]} 6... Bb4 {[%clk
0:02:44.6]} 7. e3 {[%clk 0:02:57]} 7... Nbd7 {[%clk 0:02:44.5]} 8. Bd3 {[%clk
0:02:56.5]} 8... Qa5 {[%clk 0:02:40.8]} 9. Qc2 {[%clk 0:02:45.5]} 9... h6 {[%clk
0:02:40.2]} 10. Bf4 {[%clk 0:02:42.2]} 10... O-O {[%clk 0:02:39.7]} 11. O-O
{[%clk 0:02:42]} 11... c5 {[%clk 0:02:33.5]} 12. a3 {[%clk 0:02:17.8]} 12...
Bxc3 {[%clk 0:02:33]} 13. Qxc3 {[%clk 0:02:09.3]} 13... Qb6 {[%clk 0:02:22.6]}
14. Bc2 {[%clk 0:01:40.1]} 14... Re8 {[%clk 0:02:15.4]} 15. Rfd1 {[%clk
0:01:19.3]} 15... Ne4 {[%clk 0:01:52.5]} 16. Qb3 {[%clk 0:01:10.2]} 16... Qxb3
{[%clk 0:01:35.4]} 17. Bxb3 {[%clk 0:01:11.1]} 17... c4 {[%clk 0:01:35.7]} 18.
Ba4 {[%clk 0:01:08.6]} 18... Re7 {[%clk 0:01:31.3]} 19. Ne5 {[%clk 0:01:02.7]}
19... Nxe5 {[%clk 0:01:08.2]} 20. Bxe5 {[%clk 0:01:03.6]} 20... c3 {[%clk
0:01:08]} 21. b4 {[%clk 0:00:41.2]} 21... Bd7 {[%clk 0:00:55.4]} 22. Bc2 {[%clk
0:00:25.7]} 22... Rc8 {[%clk 0:00:54.6]} 23. Rac1 {[%clk 0:00:24.4]} 23... Bb5
{[%clk 0:00:45.3]} 24. f3 {[%clk 0:00:20.6]} 24... Nd2 {[%clk 0:00:39.5]} 25.
Bf5 {[%clk 0:00:16.4]} 25... Rc6 {[%clk 0:00:32.5]} 26. Kf2 {[%clk 0:00:14.5]}
26... Ba4 {[%clk 0:00:29]} 27. Re1 {[%clk 0:00:13.4]} 27... g6 {[%clk 0:00:26]}
28. Bc2 {[%clk 0:00:12.2]} 28... Bxc2 {[%clk 0:00:22.6]} 29. Rxc2 {[%clk
0:00:13.1]} 29... Nc4 {[%clk 0:00:22.3]} 30. f4 {[%clk 0:00:05.5]} 30... Nxa3
{[%clk 0:00:21]} 31. Ra2 {[%clk 0:00:04.4]} 31... Nb5 {[%clk 0:00:20.6]} 32. Rc1
{[%clk 0:00:04.6]} 32... a6 {[%clk 0:00:20.6]} 33. Rac2 {[%clk 0:00:04.5]} 33...
f6 {[%clk 0:00:20.6]} 34. Bb8 {[%clk 0:00:04.3]} 34... Re8 {[%clk 0:00:20.7]}
35. Ba7 {[%clk 0:00:04.4]} 35... Nxa7 {[%clk 0:00:20.3]} 36. Rxc3 {[%clk
0:00:04.8]} 36... Rb8 {[%clk 0:00:20.7]} 37. Rc5 {[%clk 0:00:04.1]} 37... Rbc8
{[%clk 0:00:20.2]} 38. Ke2 {[%clk 0:00:03.3]} 38... b6 {[%clk 0:00:20.4]} 39.
Rxc6 {[%clk 0:00:03.3]} 39... Rxc6 {[%clk 0:00:20.5]} 40. Rb1 {[%clk 0:00:03.7]}
40... b5 {[%clk 0:00:20.3]} 41. Kd3 {[%clk 0:00:03.7]} 41... Rc4 {[%clk
0:00:21.2]} 42. g4 {[%clk 0:00:03.2]} 42... Nc6 {[%clk 0:00:21.5]} 43. h4 {[%clk
0:00:03.5]} 43... Nxb4+ {[%clk 0:00:21.9]} 44. Kd2 {[%clk 0:00:02.5]} 44... Nc6
{[%clk 0:00:22.8]} 45. Ra1 {[%clk 0:00:02.3]} 45... b4 {[%clk 0:00:23.4]} 46.
Rb1 {[%clk 0:00:02.8]} 46... a5 {[%clk 0:00:22.9]} 47. Ra1 {[%clk 0:00:02.8]}
47... Rc3 {[%clk 0:00:23.8]} 0-1

[Event "*** Titled Tuesday Blitz"]
[Site "Chess.com"]
[Date "2020.05.12"]
[Round "2"]
[White "Reader777"]
[Black "Vesper2018"]
[Result "0-1"]
[WhiteElo "2590"]
[BlackElo "2233"]
[TimeControl "180+1"]
[EndTime "10:18:34 PDT"]
[Termination "Vesper2018 won by checkmate"]

1. d4 {[%clk 0:03:00.9]} 1... Nf6 {[%clk 0:02:59.3]} 2. c4 {[%clk 0:03:00.3]}
2... g6 {[%clk 0:02:59.6]} 3. g3 {[%clk 0:03:00]} 3... Bg7 {[%clk 0:02:59.6]} 4.
Bg2 {[%clk 0:03:00.3]} 4... O-O {[%clk 0:02:59.3]} 5. Nc3 {[%clk 0:03:00.7]}
5... c6 {[%clk 0:02:59]} 6. Nf3 {[%clk 0:03:00.8]} 6... d5 {[%clk 0:02:59.3]} 7.
cxd5 {[%clk 0:03:01.3]} 7... cxd5 {[%clk 0:02:59.3]} 8. O-O {[%clk 0:03:01.8]}
8... Ne4 {[%clk 0:02:49.5]} 9. Nxe4 {[%clk 0:03:01.6]} 9... dxe4 {[%clk
0:02:49.7]} 10. Ne5 {[%clk 0:03:02.1]} 10... f6 {[%clk 0:02:45.9]} 11. Nc4
{[%clk 0:03:01.9]} 11... f5 {[%clk 0:02:44.2]} 12. e3 {[%clk 0:03:00.5]} 12...
Nc6 {[%clk 0:02:41.1]} 13. Qb3 {[%clk 0:02:56.2]} 13... Be6 {[%clk 0:02:33.2]}
14. Bd2 {[%clk 0:02:09.5]} 14... Rc8 {[%clk 0:02:11.6]} 15. Rac1 {[%clk
0:01:30.9]} 15... Qd7 {[%clk 0:02:00.8]} 16. a4 {[%clk 0:01:22.2]} 16... Kh8
{[%clk 0:01:58.7]} 17. Rfd1 {[%clk 0:01:15.6]} 17... Bd5 {[%clk 0:01:54]} 18.
Be1 {[%clk 0:01:13.6]} 18... Qe6 {[%clk 0:01:47.9]} 19. Bf1 {[%clk 0:01:04.9]}
19... g5 {[%clk 0:01:45.6]} 20. Qb5 {[%clk 0:00:58.7]} 20... f4 {[%clk
0:01:38.3]} 21. Na5 {[%clk 0:00:42.6]} 21... a6 {[%clk 0:01:23.1]} 22. Qb6
{[%clk 0:00:41.9]} 22... fxe3 {[%clk 0:01:18.9]} 23. fxe3 {[%clk 0:00:41.2]}
23... Rxf1+ {[%clk 0:01:15.4]} 24. Kxf1 {[%clk 0:00:40]} 24... Rf8+ {[%clk
0:01:13.6]} 25. Ke2 {[%clk 0:00:32.3]} 25... Nxd4+ {[%clk 0:00:29.7]} 26. Rxd4
{[%clk 0:00:25.6]} 26... Qxb6 {[%clk 0:00:29.7]} 27. Rxd5 {[%clk 0:00:25.8]}
27... Qxb2+ {[%clk 0:00:29]} 28. Bd2 {[%clk 0:00:25.2]} 28... h6 {[%clk
0:00:17.7]} 29. Rc7 {[%clk 0:00:21.5]} 29... Qb1 {[%clk 0:00:14.3]} 30. Be1
{[%clk 0:00:21.2]} 30... Qa2+ {[%clk 0:00:13.1]} 31. Rd2 {[%clk 0:00:20.6]}
31... Qxa4 {[%clk 0:00:13.5]} 32. Nxb7 {[%clk 0:00:20.5]} 32... Qb5+ {[%clk
0:00:13.4]} 33. Kd1 {[%clk 0:00:20.9]} 33... Qb3+ {[%clk 0:00:11.5]} 34. Ke2
{[%clk 0:00:20.5]} 34... Rf3 {[%clk 0:00:10.3]} 35. Rc8+ {[%clk 0:00:19.4]}
35... Kh7 {[%clk 0:00:10.3]} 36. Nc5 {[%clk 0:00:18.8]} 36... Qxe3+ {[%clk
0:00:10.4]} 37. Kd1 {[%clk 0:00:19.2]} 37... Rf1 {[%clk 0:00:10.4]} 38. Re2
{[%clk 0:00:18.7]} 38... Qd4+ {[%clk 0:00:10.9]} 39. Kc2 {[%clk 0:00:18.1]}
39... Qc4+ {[%clk 0:00:10.7]} 40. Kd1 {[%clk 0:00:18.2]} 40... Qd4+ {[%clk
0:00:08.9]} 41. Rd2 {[%clk 0:00:17]} 41... Qa1+ {[%clk 0:00:08.9]} 42. Kc2
{[%clk 0:00:15.8]} 42... Rxe1 {[%clk 0:00:09.2]} 43. Kb3 {[%clk 0:00:16.1]}
43... Rb1+ {[%clk 0:00:08.8]} 44. Kc4 {[%clk 0:00:16.5]} 44... Qc3+ {[%clk
0:00:08.4]} 45. Kd5 {[%clk 0:00:15.6]} 45... Qxd2+ {[%clk 0:00:08.7]} 46. Kc6
{[%clk 0:00:16.2]} 46... Qd6# {[%clk 0:00:07.4]} 0-1

[Event "*** Titled Tuesday Blitz"]
[Site "Chess.com"]
[Date "2020.05.12"]
[Round "2"]
[White "tigra"]
[Black "Quattroporte300"]
[Result "1-0"]
[WhiteElo "2791"]
[BlackElo "2336"]
[TimeControl "180+1"]
[EndTime "10:18:34 PDT"]
[Termination "tigra won on time"]

1. e4 {[%clk 0:03:00.9]} 1... e5 {[%clk 0:02:59.3]} 2. Nf3 {[%clk 0:03:00.5]}
2... Nc6 {[%clk 0:02:56.5]} 3. Bc4 {[%clk 0:02:59.7]} 3... Bc5 {[%clk 0:02:56]}
4. d3 {[%clk 0:02:59]} 4... Nf6 {[%clk 0:02:55.3]} 5. c3 {[%clk 0:02:58.5]} 5...
d6 {[%clk 0:02:55.1]} 6. Nbd2 {[%clk 0:02:56.3]} 6... a5 {[%clk 0:02:51.6]} 7.
O-O {[%clk 0:02:55.6]} 7... O-O {[%clk 0:02:46.6]} 8. Bb5 {[%clk 0:02:55.9]}
8... Bd7 {[%clk 0:02:45.5]} 9. Nc4 {[%clk 0:02:51.1]} 9... h6 {[%clk 0:02:42.9]}
10. d4 {[%clk 0:02:45.9]} 10... exd4 {[%clk 0:02:15]} 11. cxd4 {[%clk
0:02:46.8]} 11... Ba7 {[%clk 0:02:15]} 12. d5 {[%clk 0:02:28.6]} 12... Ne7
{[%clk 0:02:11.9]} 13. Bxd7 {[%clk 0:02:26.3]} 13... Qxd7 {[%clk 0:02:08.6]} 14.
Qc2 {[%clk 0:02:20.4]} 14... a4 {[%clk 0:01:37.3]} 15. Be3 {[%clk 0:02:13.8]}
15... Bxe3 {[%clk 0:01:35.4]} 16. Nxe3 {[%clk 0:02:14.7]} 16... c5 {[%clk
0:01:11.9]} 17. Nc4 {[%clk 0:02:11.2]} 17... Qc7 {[%clk 0:01:05.7]} 18. e5
{[%clk 0:02:11.5]} 18... Ne8 {[%clk 0:00:58.4]} 19. Rad1 {[%clk 0:02:09.5]}
19... b5 {[%clk 0:00:54.8]} 20. Nxd6 {[%clk 0:02:09.1]} 20... Nxd6 {[%clk
0:00:54.5]} 21. exd6 {[%clk 0:02:10]} 21... Qxd6 {[%clk 0:00:54.9]} 22. Qe2
{[%clk 0:02:08.7]} 22... Rab8 {[%clk 0:00:48.4]} 23. Rfe1 {[%clk 0:01:46.6]}
23... Ng6 {[%clk 0:00:39]} 24. g3 {[%clk 0:01:43]} 24... Rfd8 {[%clk 0:00:31.3]}
25. h4 {[%clk 0:01:40.5]} 25... Nf8 {[%clk 0:00:23.8]} 26. Ne5 {[%clk
0:01:39.2]} 26... Re8 {[%clk 0:00:20.7]} 27. b4 {[%clk 0:00:34]} 27... c4 {[%clk
0:00:15.1]} 28. Qb2 {[%clk 0:00:33.4]} 28... Nd7 {[%clk 0:00:10.8]} 29. Nc6
{[%clk 0:00:32.9]} 29... Rbc8 {[%clk 0:00:08.9]} 30. Qd4 {[%clk 0:00:31.9]}
30... Nf6 {[%clk 0:00:07.9]} 31. Rxe8+ {[%clk 0:00:23.1]} 31... Rxe8 {[%clk
0:00:08]} 32. Qc5 {[%clk 0:00:23.5]} 32... Qc7 {[%clk 0:00:04.9]} 33. d6 {[%clk
0:00:22.2]} 33... Qd7 {[%clk 0:00:04.9]} 34. Qxb5 {[%clk 0:00:16.5]} 34... Ne4
{[%clk 0:00:04.7]} 35. Qxc4 {[%clk 0:00:09.7]} 35... Nxd6 {[%clk 0:00:04.1]} 36.
Qd5 {[%clk 0:00:09.9]} 36... Re6 {[%clk 0:00:03.5]} 37. b5 {[%clk 0:00:09]}
37... Kh7 {[%clk 0:00:03.8]} 38. b6 {[%clk 0:00:09.1]} 38... Rg6 {[%clk
0:00:03.4]} 39. Ne5 {[%clk 0:00:09]} 1-0

[Event "*** Titled Tuesday Blitz"]
[Site "Chess.com"]
[Date "2020.05.12"]
[Round "2"]
[White "marszach123"]
[Black "MathiasWomacka"]
[Result "0-1"]
[WhiteElo "2185"]
[BlackElo "2429"]
[TimeControl "180+1"]
[EndTime "10:18:34 PDT"]
[Termination "MathiasWomacka won on time"]

1. e4 {[%clk 0:03:00.9]} 1... c5 {[%clk 0:02:59.9]} 2. Nf3 {[%clk 0:03:01.3]}
2... d6 {[%clk 0:03:00.2]} 3. d4 {[%clk 0:03:01.9]} 3... cxd4 {[%clk 0:03:01.1]}
4. Nxd4 {[%clk 0:03:02.5]} 4... Nf6 {[%clk 0:03:01.5]} 5. Nc3 {[%clk 0:03:03]}
5... a6 {[%clk 0:03:01.8]} 6. Bg5 {[%clk 0:03:03]} 6... e6 {[%clk 0:03:01.9]} 7.
f4 {[%clk 0:03:03.6]} 7... h6 {[%clk 0:03:02]} 8. Bh4 {[%clk 0:03:03]} 8... Qb6
{[%clk 0:03:02.1]} 9. a3 {[%clk 0:03:02.3]} 9... Nbd7 {[%clk 0:03:01.6]} 10. Be2
{[%clk 0:03:00.4]} 10... Be7 {[%clk 0:02:54.5]} 11. Bf2 {[%clk 0:03:00.1]} 11...
Qc7 {[%clk 0:02:53.8]} 12. Bf3 {[%clk 0:02:56.3]} 12... Rb8 {[%clk 0:02:43.2]}
13. O-O {[%clk 0:02:50]} 13... b5 {[%clk 0:02:43]} 14. Qe2 {[%clk 0:02:18.4]}
14... Bb7 {[%clk 0:02:42.4]} 15. Rad1 {[%clk 0:02:15.6]} 15... O-O {[%clk
0:02:40.2]} 16. g4 {[%clk 0:02:07.9]} 16... Nb6 {[%clk 0:02:19]} 17. g5 {[%clk
0:01:29.4]} 17... hxg5 {[%clk 0:02:18.8]} 18. fxg5 {[%clk 0:01:29.5]} 18... Nfd7
{[%clk 0:02:19.3]} 19. g6 {[%clk 0:01:29.8]} 19... Ne5 {[%clk 0:02:06.7]} 20.
gxf7+ {[%clk 0:01:29]} 20... Rxf7 {[%clk 0:02:06.9]} 21. Nxe6 {[%clk 0:01:15.9]}
21... Nxf3+ {[%clk 0:01:35.4]} 22. Qxf3 {[%clk 0:01:15.8]} 22... Qd7 {[%clk
0:01:35.5]} 23. Qg4 {[%clk 0:00:48.8]} 23... Nc4 {[%clk 0:01:33.3]} 24. Ba7
{[%clk 0:00:35.2]} 24... Ne5 {[%clk 0:01:12.7]} 25. Qg3 {[%clk 0:00:11.5]} 25...
Qxe6 {[%clk 0:00:56]} 26. Bxb8 {[%clk 0:00:07.9]} 26... Nc4 {[%clk 0:00:25.6]}
27. Rxf7 {[%clk 0:00:07.3]} 27... Qxf7 {[%clk 0:00:24.9]} 28. Ba7 {[%clk
0:00:02.5]} 28... Bf6 {[%clk 0:00:21.3]} 29. Bd4 {[%clk 0:00:01.5]} 29... Bxd4+
{[%clk 0:00:16.2]} 30. Rxd4 {[%clk 0:00:01.6]} 30... Qf6 {[%clk 0:00:16]} 31.
Qf2 {[%clk 0:00:01]} 31... Qg5+ {[%clk 0:00:13]} 32. Qg2 {[%clk 0:00:01.1]}
32... Qe3+ {[%clk 0:00:08.2]} 33. Qf2 {[%clk 0:00:01.2]} 33... Qc1+ {[%clk
0:00:06.2]} 34. Qf1 {[%clk 0:00:01.2]} 34... Qxb2 {[%clk 0:00:04.1]} 35. Qf2
{[%clk 0:00:01.5]} 35... Qxc3 {[%clk 0:00:04]} 0-1

[Event "*** Titled Tuesday Blitz"]
[Site "Chess.com"]
[Date "2020.05.12"]
[Round "2"]
[White "DamianoLew95"]
[Black "viditchess"]
[Result "0-1"]
[WhiteElo "2570"]
[BlackElo "2946"]
[TimeControl "180+1"]
[EndTime "10:18:35 PDT"]
[Termination "viditchess won on time"]

1. d4 {[%clk 0:03:00.9]} 1... Nf6 {[%clk 0:02:59.8]} 2. Nf3 {[%clk 0:03:00.9]}
2... d5 {[%clk 0:02:59.5]} 3. Bf4 {[%clk 0:02:59.8]} 3... e6 {[%clk 0:02:58.5]}
4. e3 {[%clk 0:02:59.3]} 4... Bd6 {[%clk 0:02:58.9]} 5. Nbd2 {[%clk 0:02:57]}
5... c5 {[%clk 0:02:58.3]} 6. c3 {[%clk 0:02:56.9]} 6... Qc7 {[%clk 0:02:58]} 7.
Bg3 {[%clk 0:02:39.9]} 7... Nbd7 {[%clk 0:02:57.7]} 8. Bd3 {[%clk 0:02:38.3]}
8... O-O {[%clk 0:02:55.5]} 9. e4 {[%clk 0:02:38.2]} 9... cxd4 {[%clk 0:02:53]}
10. Nxd4 {[%clk 0:02:34.9]} 10... Bxg3 {[%clk 0:02:42.6]} 11. hxg3 {[%clk
0:02:33.7]} 11... Nc5 {[%clk 0:02:43.2]} 12. Qe2 {[%clk 0:02:30.3]} 12... Nxd3+
{[%clk 0:02:31.2]} 13. Qxd3 {[%clk 0:02:31.2]} 13... dxe4 {[%clk 0:02:25.9]} 14.
Nxe4 {[%clk 0:02:29.3]} 14... Qe5 {[%clk 0:02:25.6]} 15. Rh4 {[%clk 0:02:13.2]}
15... Nxe4 {[%clk 0:02:10.8]} 16. Rxe4 {[%clk 0:02:11.9]} 16... Qf6 {[%clk
0:02:09.6]} 17. Rf4 {[%clk 0:01:55.1]} 17... Qg6 {[%clk 0:01:56]} 18. Qxg6
{[%clk 0:01:54.4]} 18... hxg6 {[%clk 0:01:56.9]} 19. Rh4 {[%clk 0:01:41.3]}
19... e5 {[%clk 0:01:52.8]} 20. Nb5 {[%clk 0:01:38.1]} 20... Rd8 {[%clk
0:01:41.8]} 21. Rd1 {[%clk 0:01:27.7]} 21... Rxd1+ {[%clk 0:01:35.8]} 22. Kxd1
{[%clk 0:01:28.6]} 22... Bd7 {[%clk 0:01:35]} 23. Na3 {[%clk 0:01:27.3]} 23...
Bc6 {[%clk 0:01:30.7]} 24. f3 {[%clk 0:01:26.3]} 24... g5 {[%clk 0:01:25.2]} 25.
Rh1 {[%clk 0:01:14.6]} 25... e4 {[%clk 0:01:18.8]} 26. Ke2 {[%clk 0:01:13.7]}
26... exf3+ {[%clk 0:01:13.3]} 27. gxf3 {[%clk 0:01:14.1]} 27... g4 {[%clk
0:01:13.7]} 28. Rh5 {[%clk 0:01:13.3]} 28... gxf3+ {[%clk 0:01:12.4]} 29. Kf1
{[%clk 0:01:08.3]} 29... Re8 {[%clk 0:00:54.6]} 30. Rh2 {[%clk 0:01:04.8]} 30...
Rd8 {[%clk 0:00:50.1]} 31. Ke1 {[%clk 0:01:02.2]} 31... f6 {[%clk 0:00:45.3]}
32. Nc2 {[%clk 0:00:59.1]} 32... Re8+ {[%clk 0:00:39.5]} 33. Kd2 {[%clk
0:00:53.2]} 33... g5 {[%clk 0:00:33.6]} 34. Nd4 {[%clk 0:00:34.3]} 34... g4
{[%clk 0:00:31.1]} 35. Rh4 {[%clk 0:00:27.4]} 35... Bd7 {[%clk 0:00:27.7]} 36.
Rh1 {[%clk 0:00:10.3]} 36... Kg7 {[%clk 0:00:25.8]} 37. Rh2 {[%clk 0:00:07]}
37... Kg6 {[%clk 0:00:24.4]} 38. Nc2 {[%clk 0:00:07.3]} 38... f5 {[%clk
0:00:20.5]} 39. Ne3 {[%clk 0:00:02.2]} 39... f4 {[%clk 0:00:17.2]} 40. gxf4
{[%clk 0:00:03.1]} 40... g3 {[%clk 0:00:17.6]} 41. Rh1 {[%clk 0:00:01.1]} 41...
g2 {[%clk 0:00:16.1]} 42. Nxg2 {[%clk 0:00:01.1]} 42... fxg2 {[%clk 0:00:16.1]}
43. Rg1 {[%clk 0:00:02]} 43... Bc6 {[%clk 0:00:16.6]} 0-1